[Event "Titled Tuesday Blitz April 19 Early 2022"]
[White "Kaasen, Tor Fredrik"]
[Black "Dixit, Nikhil"]
[WhiteFideId "1516647"]
[BlackFideId "5059534"]
[WhiteElo "2335"]
[BlackElo "2223"]
[Result "1-0"]
[Round "07"]
[TimeControl "180+1"]
[Date "2022.04.19"]
[WhiteClock "0:01:29"]
[BlackClock "0:00:08"]

1. d4 {[%clk 0:02:55]}  Nf6 {[%clk 0:02:59]} 2. c4 {[%clk 0:02:55]}  g6 {[%clk 0:03:00]} 3. g3 {[%clk 0:02:56]}  Bg7 {[%clk 0:03:00]} 4. Bg2 {[%clk 0:02:57]}  O-O {[%clk 0:03:01]} 5. Nc3 {[%clk 0:02:56]}  d6 {[%clk 0:03:02]} 6. Nf3 {[%clk 0:02:57]}  Nbd7 {[%clk 0:03:01]} 7. O-O {[%clk 0:02:56]}  e5 {[%clk 0:03:02]} 8. e4 {[%clk 0:02:57]}  exd4 {[%clk 0:03:02]} 9. Nxd4 {[%clk 0:02:56]}  Re8 {[%clk 0:03:03]} 10. h3 {[%clk 0:02:55]}  Nc5 {[%clk 0:03:04]} 11. Re1 {[%clk 0:02:45]}  Bd7 {[%clk 0:02:50]} 12. Bf4 {[%clk 0:02:41]}  Qc8 {[%clk 0:02:35]} 13. Kh2 {[%clk 0:02:37]}  h6 {[%clk 0:01:40]} 14. Qc2 {[%clk 0:02:29]}  Ng4+ {[%clk 0:01:14]} 15. hxg4 {[%clk 0:02:28]}  Bxd4 {[%clk 0:01:14]} 16. Rad1 {[%clk 0:02:10]}  Bg7 {[%clk 0:01:13]} 17. f3 {[%clk 0:02:08]}  Ne6 {[%clk 0:01:12]} 18. Be3 {[%clk 0:02:06]}  a6 {[%clk 0:01:09]} 19. Nd5 {[%clk 0:01:57]}  Rb8 {[%clk 0:01:00]} 20. Qd2 {[%clk 0:01:57]}  Kh7 {[%clk 0:00:59]} 21. Rh1 {[%clk 0:01:55]}  b5 {[%clk 0:00:56]} 22. Kg1 {[%clk 0:01:55]}  g5 {[%clk 0:00:37]} 23. Bxg5 {[%clk 0:01:52]}  Nxg5 {[%clk 0:00:34]} 24. Qxg5 {[%clk 0:01:53]}  Qd8 {[%clk 0:00:19]} 25. Rxh6+ {[%clk 0:01:52]}  Bxh6 {[%clk 0:00:19]} 26. Nf6+ {[%clk 0:01:52]}  Qxf6 {[%clk 0:00:17]} 27. Qxf6 {[%clk 0:01:53]}  Be6 {[%clk 0:00:15]} 28. f4 {[%clk 0:01:47]}  Bg7 {[%clk 0:00:14]} 29. Qh4+ {[%clk 0:01:45]}  Kg8 {[%clk 0:00:15]} 30. f5 {[%clk 0:01:43]}  Bxc4 {[%clk 0:00:14]} 31. f6 {[%clk 0:01:43]}  Bh8 {[%clk 0:00:08]} 32. Qg5+ {[%clk 0:01:32]}  Kh7 {[%clk 0:00:08]} 33. Kf2 {[%clk 0:01:29]} 1-0


[Site "https://www.chess.com"]

[Event "Titled Tuesday Blitz April 19 Early 2022"]
[White "Kadam, Om Manish"]
[Black "Belenkaya, Dina"]
[WhiteFideId "45076294"]
[BlackFideId "24142654"]
[WhiteElo "1729"]
[BlackElo "2196"]
[Result "1-0"]
[Round "07"]
[TimeControl "180+1"]
[Date "2022.04.19"]
[WhiteClock "0:00:38"]
[BlackClock "0:00:42"]

1. e4 {[%clk 0:03:00]}  c6 {[%clk 0:02:54]} 2. c4 {[%clk 0:02:51]}  d5 {[%clk 0:02:53]} 3. exd5 {[%clk 0:02:45]}  cxd5 {[%clk 0:02:54]} 4. cxd5 {[%clk 0:02:46]}  Nf6 {[%clk 0:02:53]} 5. Nc3 {[%clk 0:02:36]}  g6 {[%clk 0:02:51]} 6. Nf3 {[%clk 0:02:37]}  Bg7 {[%clk 0:02:50]} 7. Qb3 {[%clk 0:02:35]}  O-O {[%clk 0:02:49]} 8. Bc4 {[%clk 0:02:29]}  Nbd7 {[%clk 0:02:42]} 9. O-O {[%clk 0:02:23]}  b6 {[%clk 0:02:41]} 10. d3 {[%clk 0:02:19]}  Bb7 {[%clk 0:02:41]} 11. Be3 {[%clk 0:02:14]}  a6 {[%clk 0:02:39]} 12. a4 {[%clk 0:02:14]}  Rb8 {[%clk 0:02:37]} 13. h3 {[%clk 0:02:13]}  Nc5 {[%clk 0:02:36]} 14. Qa2 {[%clk 0:02:05]}  a5 {[%clk 0:02:30]} 15. Rfe1 {[%clk 0:02:00]}  Ne8 {[%clk 0:02:16]} 16. Bf4 {[%clk 0:01:39]}  Nd6 {[%clk 0:02:15]} 17. Nb5 {[%clk 0:01:29]}  Re8 {[%clk 0:01:51]} 18. Rxe7 {[%clk 0:01:23]}  Rxe7 {[%clk 0:01:33]} 19. Bxd6 {[%clk 0:01:21]}  Re2 {[%clk 0:01:29]} 20. Bc7 {[%clk 0:01:08]}  Qc8 {[%clk 0:01:26]} 21. Bxb8 {[%clk 0:01:08]}  Qxb8 {[%clk 0:01:27]} 22. d4 {[%clk 0:01:08]}  Rc2 {[%clk 0:01:12]} 23. dxc5 {[%clk 0:01:06]}  Qf4 {[%clk 0:01:08]} 24. Bf1 {[%clk 0:00:50]}  Rxb2 {[%clk 0:01:08]} 25. Qa3 {[%clk 0:00:49]}  Bxd5 {[%clk 0:01:09]} 26. Rd1 {[%clk 0:00:48]}  Rb3 {[%clk 0:00:55]} 27. Qc1 {[%clk 0:00:44]}  Qxa4 {[%clk 0:00:42]} 28. Rxd5 {[%clk 0:00:40]}  Rxb5 {[%clk 0:00:41]} 29. Bxb5 {[%clk 0:00:39]}  Qxb5 {[%clk 0:00:42]} 30. c6 {[%clk 0:00:38]} 1-0


[Site "https://www.chess.com"]

[Event "Titled Tuesday Blitz April 19 Early 2022"]
[White "Kaiyrbekov, Rustam"]
[Black "parintele_chess"]
[WhiteFideId "13702424"]
[WhiteElo "2134"]
[BlackElo "2216"]
[Result "0-1"]
[Round "07"]
[TimeControl "180+1"]
[Date "2022.04.19"]
[WhiteClock "0:00:01"]
[BlackClock "0:00:22"]

1. c4 {[%clk 0:03:00]}  c5 {[%clk 0:02:58]} 2. Nc3 {[%clk 0:03:00]}  Nc6 {[%clk 0:02:58]} 3. Nf3 {[%clk 0:03:01]}  Nf6 {[%clk 0:02:58]} 4. d4 {[%clk 0:03:01]}  cxd4 {[%clk 0:02:58]} 5. Nxd4 {[%clk 0:03:02]}  Nxd4 {[%clk 0:02:59]} 6. Qxd4 {[%clk 0:03:03]}  d6 {[%clk 0:03:00]} 7. g3 {[%clk 0:03:04]}  g6 {[%clk 0:03:00]} 8. Bg2 {[%clk 0:03:04]}  Bg7 {[%clk 0:03:01]} 9. O-O {[%clk 0:03:04]}  O-O {[%clk 0:03:01]} 10. e4 {[%clk 0:02:59]}  Ng4 {[%clk 0:02:57]} 11. Qd2 {[%clk 0:02:56]}  Ne5 {[%clk 0:02:56]} 12. b3 {[%clk 0:02:54]}  a6 {[%clk 0:02:47]} 13. Bb2 {[%clk 0:02:54]}  Rb8 {[%clk 0:02:46]} 14. f4 {[%clk 0:02:51]}  Qb6+ {[%clk 0:02:47]} 15. Kh1 {[%clk 0:02:50]}  Ng4 {[%clk 0:02:46]} 16. Nd5 {[%clk 0:02:45]}  Qd8 {[%clk 0:02:45]} 17. Bxg7 {[%clk 0:02:43]}  Kxg7 {[%clk 0:02:46]} 18. h3 {[%clk 0:02:35]}  Nf6 {[%clk 0:02:46]} 19. f5 {[%clk 0:02:20]}  Nxd5 {[%clk 0:02:36]} 20. cxd5 {[%clk 0:02:16]}  f6 {[%clk 0:02:32]} 21. g4 {[%clk 0:02:00]}  g5 {[%clk 0:02:30]} 22. h4 {[%clk 0:02:00]}  h5 {[%clk 0:02:25]} 23. hxg5 {[%clk 0:01:58]}  hxg4 {[%clk 0:02:26]} 24. gxf6+ {[%clk 0:01:58]}  exf6 {[%clk 0:02:26]} 25. Qf4 {[%clk 0:01:56]}  Qb6 {[%clk 0:02:24]} 26. Qxg4+ {[%clk 0:01:55]}  Kf7 {[%clk 0:02:24]} 27. Qh5+ {[%clk 0:01:49]}  Ke7 {[%clk 0:02:22]} 28. Rf3 {[%clk 0:00:52]}  Bd7 {[%clk 0:02:20]} 29. Rh3 {[%clk 0:00:42]}  Rf7 {[%clk 0:02:05]} 30. Qg6 {[%clk 0:00:39]}  Rbf8 {[%clk 0:01:50]} 31. Rh7 {[%clk 0:00:28]}  Rxh7+ {[%clk 0:01:48]} 32. Qxh7+ {[%clk 0:00:29]}  Rf7 {[%clk 0:01:49]} 33. Qg6 {[%clk 0:00:29]}  Qf2 {[%clk 0:01:47]} 34. Rf1 {[%clk 0:00:21]}  Qh4+ {[%clk 0:01:47]} 35. Kg1 {[%clk 0:00:21]}  Rh7 {[%clk 0:01:48]} 36. Rf3 {[%clk 0:00:15]}  Qh2+ {[%clk 0:01:39]} 37. Kf2 {[%clk 0:00:14]}  Bb5 {[%clk 0:01:32]} 38. Rg3 {[%clk 0:00:14]}  Qh4 {[%clk 0:01:24]} 39. Qg8 {[%clk 0:00:13]}  Qf4+ {[%clk 0:01:19]} 40. Rf3 {[%clk 0:00:12]}  Qd2+ {[%clk 0:01:16]} 41. Kg3 {[%clk 0:00:12]}  Qe1+ {[%clk 0:01:14]} 42. Rf2 {[%clk 0:00:06]}  Rf7 {[%clk 0:00:42]} 43. Qc8 {[%clk 0:00:03]}  Rg7+ {[%clk 0:00:38]} 44. Kf3 {[%clk 0:00:03]}  Qd1+ {[%clk 0:00:25]} 45. Kf4 {[%clk 0:00:01]}  Rg4+ {[%clk 0:00:22]} 0-1


[Site "https://www.chess.com"]

[Event "Titled Tuesday Blitz April 19 Early 2022"]
[White "Kostiukov, Alexandr"]
[Black "Ratnakaran, K."]
[WhiteFideId "14108100"]
[BlackFideId "5005507"]
[WhiteElo "2202"]
[BlackElo "2407"]
[Result "1-0"]
[Round "07"]
[TimeControl "180+1"]
[Date "2022.04.19"]
[WhiteClock "0:00:06"]
[BlackClock "0:01:32"]

1. g3 {[%clk 0:02:51]}  h5 {[%clk 0:02:59]} 2. Nf3 {[%clk 0:02:50]}  Nc6 {[%clk 0:02:57]} 3. d4 {[%clk 0:02:46]}  d5 {[%clk 0:02:58]} 4. c4 {[%clk 0:02:44]}  dxc4 {[%clk 0:02:57]} 5. d5 {[%clk 0:02:44]}  Nb8 {[%clk 0:02:57]} 6. Nc3 {[%clk 0:02:40]}  c6 {[%clk 0:02:57]} 7. e4 {[%clk 0:02:38]}  e6 {[%clk 0:02:57]} 8. Bxc4 {[%clk 0:02:36]}  b5 {[%clk 0:02:56]} 9. Be2 {[%clk 0:02:35]}  b4 {[%clk 0:02:56]} 10. Na4 {[%clk 0:02:28]}  exd5 {[%clk 0:02:51]} 11. exd5 {[%clk 0:02:27]}  Qxd5 {[%clk 0:02:50]} 12. O-O {[%clk 0:02:09]}  Nf6 {[%clk 0:02:49]} 13. Nd4 {[%clk 0:01:59]}  Bb7 {[%clk 0:02:32]} 14. Bf3 {[%clk 0:01:57]}  Qa5 {[%clk 0:02:31]} 15. Re1+ {[%clk 0:01:55]}  Be7 {[%clk 0:02:31]} 16. Qe2 {[%clk 0:01:32]}  Ng8 {[%clk 0:02:31]} 17. b3 {[%clk 0:01:25]}  Kf8 {[%clk 0:02:25]} 18. Bd2 {[%clk 0:01:12]}  h4 {[%clk 0:02:25]} 19. a3 {[%clk 0:01:11]}  hxg3 {[%clk 0:02:18]} 20. Bxb4 {[%clk 0:01:03]}  gxf2+ {[%clk 0:02:17]} 21. Qxf2 {[%clk 0:00:51]}  Bxb4 {[%clk 0:02:09]} 22. axb4 {[%clk 0:00:52]}  Qxb4 {[%clk 0:02:09]} 23. Re4 {[%clk 0:00:49]}  Qa5 {[%clk 0:01:59]} 24. Nc5 {[%clk 0:00:47]}  Nf6 {[%clk 0:01:53]} 25. Rxa5 {[%clk 0:00:46]}  Bc8 {[%clk 0:01:44]} 26. Re1 {[%clk 0:00:37]}  Nbd7 {[%clk 0:01:41]} 27. Nxc6 {[%clk 0:00:32]}  Nb6 {[%clk 0:01:39]} 28. Rxa7 {[%clk 0:00:25]}  Rxa7 {[%clk 0:01:39]} 29. Nxa7 {[%clk 0:00:25]}  Bh3 {[%clk 0:01:39]} 30. Ne4 {[%clk 0:00:19]}  Nbd5 {[%clk 0:01:38]} 31. Nxf6 {[%clk 0:00:18]}  Nxf6 {[%clk 0:01:38]} 32. Qg3 {[%clk 0:00:15]}  Rh6 {[%clk 0:01:36]} 33. Qd6+ {[%clk 0:00:11]}  Kg8 {[%clk 0:01:36]} 34. Kf2 {[%clk 0:00:12]}  Be6 {[%clk 0:01:35]} 35. Nc6 {[%clk 0:00:10]}  Bxb3 {[%clk 0:01:33]} 36. Ne7+ {[%clk 0:00:09]}  Kh8 {[%clk 0:01:33]} 37. Qd8+ {[%clk 0:00:08]}  Kh7 {[%clk 0:01:33]} 38. Qd3+ {[%clk 0:00:08]}  g6 {[%clk 0:01:33]} 39. Qxb3 {[%clk 0:00:08]}  Kg7 {[%clk 0:01:32]} 40. Nd5 {[%clk 0:00:09]}  Rxh2+ {[%clk 0:01:32]} 41. Kg1 {[%clk 0:00:08]}  Rh3 {[%clk 0:01:32]} 42. Qc3 {[%clk 0:00:07]}  Rxf3 {[%clk 0:01:31]} 43. Qxf3 {[%clk 0:00:07]}  Nh5 {[%clk 0:01:32]} 44. Re7 {[%clk 0:00:06]} 1-0


[Site "https://www.chess.com"]

[Event "Titled Tuesday Blitz April 19 Early 2022"]
[White "Kotepalli, Sai Nirupama"]
[Black "Bashirli, Saadat"]
[WhiteFideId "5039444"]
[BlackFideId "13429990"]
[WhiteElo "2407"]
[BlackElo "1173"]
[Result "1/2-1/2"]
[Round "07"]
[TimeControl "180+1"]
[Date "2022.04.19"]
[WhiteClock "0:00:02"]
[BlackClock "0:00:08"]

1. e4 {[%clk 0:03:00]}  c5 {[%clk 0:02:58]} 2. Nf3 {[%clk 0:03:00]}  g6 {[%clk 0:02:56]} 3. d3 {[%clk 0:02:59]}  Bg7 {[%clk 0:02:55]} 4. g3 {[%clk 0:02:59]}  e6 {[%clk 0:02:54]} 5. Bg2 {[%clk 0:02:58]}  Ne7 {[%clk 0:02:55]} 6. O-O {[%clk 0:02:58]}  O-O {[%clk 0:02:55]} 7. c3 {[%clk 0:02:58]}  Nbc6 {[%clk 0:02:56]} 8. Be3 {[%clk 0:02:57]}  d6 {[%clk 0:02:55]} 9. d4 {[%clk 0:02:56]}  cxd4 {[%clk 0:02:56]} 10. cxd4 {[%clk 0:02:57]}  d5 {[%clk 0:02:57]} 11. e5 {[%clk 0:02:56]}  Nf5 {[%clk 0:02:57]} 12. Nc3 {[%clk 0:02:53]}  Qb6 {[%clk 0:02:57]} 13. Qd2 {[%clk 0:02:51]}  Na5 {[%clk 0:02:56]} 14. b3 {[%clk 0:02:47]}  Bd7 {[%clk 0:02:56]} 15. Bg5 {[%clk 0:02:42]}  Rac8 {[%clk 0:02:53]} 16. Rac1 {[%clk 0:02:36]}  h6 {[%clk 0:02:50]} 17. Bf4 {[%clk 0:02:30]}  Nc6 {[%clk 0:02:49]} 18. Rfd1 {[%clk 0:02:29]}  g5 {[%clk 0:02:48]} 19. Be3 {[%clk 0:02:16]}  f6 {[%clk 0:02:27]} 20. Na4 {[%clk 0:02:12]}  Qd8 {[%clk 0:02:24]} 21. exf6 {[%clk 0:02:11]}  Bxf6 {[%clk 0:02:20]} 22. h4 {[%clk 0:01:59]}  Nxe3 {[%clk 0:01:45]} 23. Qxe3 {[%clk 0:01:58]}  gxh4 {[%clk 0:01:43]} 24. Qxh6 {[%clk 0:01:51]}  hxg3 {[%clk 0:01:39]} 25. fxg3 {[%clk 0:01:52]}  Qe7 {[%clk 0:01:08]} 26. Nc5 {[%clk 0:01:46]}  Rf7 {[%clk 0:01:07]} 27. Qe3 {[%clk 0:01:31]}  Nxd4 {[%clk 0:01:01]} 28. Rxd4 {[%clk 0:01:31]}  Bxd4 {[%clk 0:00:54]} 29. Qxd4 {[%clk 0:01:32]}  b6 {[%clk 0:00:54]} 30. Nd3 {[%clk 0:01:31]}  Rxc1+ {[%clk 0:00:51]} 31. Nxc1 {[%clk 0:01:32]}  Qc5 {[%clk 0:00:49]} 32. Qxc5 {[%clk 0:01:31]}  bxc5 {[%clk 0:00:50]} 33. Nd3 {[%clk 0:01:31]}  c4 {[%clk 0:00:45]} 34. bxc4 {[%clk 0:01:30]}  dxc4 {[%clk 0:00:44]} 35. Nde5 {[%clk 0:01:27]}  Re7 {[%clk 0:00:42]} 36. Nxc4 {[%clk 0:01:25]}  Bc6 {[%clk 0:00:42]} 37. Nce5 {[%clk 0:01:20]}  Bd5 {[%clk 0:00:41]} 38. a3 {[%clk 0:01:18]}  Rc7 {[%clk 0:00:40]} 39. Nd4 {[%clk 0:01:15]}  Rc1+ {[%clk 0:00:31]} 40. Kf2 {[%clk 0:01:09]}  Ra1 {[%clk 0:00:31]} 41. Bh3 {[%clk 0:00:59]}  Rxa3 {[%clk 0:00:27]} 42. Nxe6 {[%clk 0:00:58]}  Bxe6 {[%clk 0:00:18]} 43. Bxe6+ {[%clk 0:00:57]}  Kg7 {[%clk 0:00:19]} 44. Nc6 {[%clk 0:00:44]}  Ra1 {[%clk 0:00:15]} 45. Bd5 {[%clk 0:00:38]}  a5 {[%clk 0:00:15]} 46. Nd4 {[%clk 0:00:33]}  a4 {[%clk 0:00:15]} 47. Ne2 {[%clk 0:00:29]}  a3 {[%clk 0:00:15]} 48. Nc3 {[%clk 0:00:29]}  Rc1 {[%clk 0:00:14]} 49. Na2 {[%clk 0:00:27]}  Rc2+ {[%clk 0:00:12]} 50. Ke3 {[%clk 0:00:27]}  Rb2 {[%clk 0:00:11]} 51. Kd4 {[%clk 0:00:24]}  Kg6 {[%clk 0:00:10]} 52. Kc3 {[%clk 0:00:20]}  Kg5 {[%clk 0:00:10]} 53. Be6 {[%clk 0:00:19]}  Re2 {[%clk 0:00:08]} 54. Bc4 {[%clk 0:00:18]}  Rb2 {[%clk 0:00:07]} 55. Nb4 {[%clk 0:00:16]}  Kg4 {[%clk 0:00:06]} 56. Nc2 {[%clk 0:00:16]}  Kxg3 {[%clk 0:00:03]} 57. Nxa3 {[%clk 0:00:15]}  Rf2 {[%clk 0:00:04]} 58. Nb5 {[%clk 0:00:15]}  Rf5 {[%clk 0:00:03]} 59. Nd6 {[%clk 0:00:14]}  Rc5 {[%clk 0:00:03]} 60. Ne4+ {[%clk 0:00:14]}  Kg4 {[%clk 0:00:03]} 61. Nxc5 {[%clk 0:00:15]}  Kf4 {[%clk 0:00:04]} 62. Kd4 {[%clk 0:00:15]}  Kf3 {[%clk 0:00:04]} 63. Ne6 {[%clk 0:00:13]}  Kg4 {[%clk 0:00:05]} 64. Ke4 {[%clk 0:00:12]}  Kg3 {[%clk 0:00:04]} 65. Ke3 {[%clk 0:00:12]}  Kg4 {[%clk 0:00:05]} 66. Bd3 {[%clk 0:00:12]}  Kg3 {[%clk 0:00:05]} 67. Be4 {[%clk 0:00:11]}  Kg4 {[%clk 0:00:06]} 68. Nd4 {[%clk 0:00:10]}  Kg5 {[%clk 0:00:07]} 69. Bf5 {[%clk 0:00:08]}  Kf6 {[%clk 0:00:06]} 70. Kf4 {[%clk 0:00:09]}  Ke7 {[%clk 0:00:07]} 71. Ke5 {[%clk 0:00:10]}  Kd8 {[%clk 0:00:07]} 72. Kd6 {[%clk 0:00:10]}  Ke8 {[%clk 0:00:08]} 73. Bg6+ {[%clk 0:00:08]}  Kf8 {[%clk 0:00:08]} 74. Ne6+ {[%clk 0:00:08]}  Kg8 {[%clk 0:00:07]} 75. Bf5 {[%clk 0:00:04]}  Kh8 {[%clk 0:00:07]} 76. Ke7 {[%clk 0:00:03]}  Kg8 {[%clk 0:00:07]} 77. Kf6 {[%clk 0:00:04]}  Kh8 {[%clk 0:00:07]} 78. Ng5 {[%clk 0:00:04]}  Kg8 {[%clk 0:00:07]} 79. Be4 {[%clk 0:00:03]}  Kh8 {[%clk 0:00:08]} 80. Bd3 {[%clk 0:00:03]}  Kg8 {[%clk 0:00:08]} 81. Ne6 {[%clk 0:00:02]}  Kh8 {[%clk 0:00:08]} 82. Nd8 {[%clk 0:00:02]}  Kg8 {[%clk 0:00:08]} 83. Ne6 {[%clk 0:00:02]}  Kh8 {[%clk 0:00:08]} 84. Ng5 {[%clk 0:00:03]}  Kg8 {[%clk 0:00:07]} 85. Bc4+ {[%clk 0:00:03]}  Kh8 {[%clk 0:00:08]} 86. Nf7+ {[%clk 0:00:03]}  Kg8 {[%clk 0:00:08]} 87. Ng5+ {[%clk 0:00:02]}  Kh8 {[%clk 0:00:08]} 88. Bd3 {[%clk 0:00:02]} 1/2-1/2


[Site "https://www.chess.com"]

[Event "Titled Tuesday Blitz April 19 Early 2022"]
[White "Legenia, Artem"]
[Black "Swicarz, Maciej"]
[WhiteFideId "14136945"]
[BlackFideId "1113585"]
[WhiteElo "1936"]
[BlackElo "2057"]
[Result "0-1"]
[Round "07"]
[TimeControl "180+1"]
[Date "2022.04.19"]
[WhiteClock "0:00:35"]
[BlackClock "0:01:03"]

1. Nf3 {[%clk 0:03:00]}  c5 {[%clk 0:02:58]} 2. d3 {[%clk 0:02:51]}  Nc6 {[%clk 0:02:56]} 3. g3 {[%clk 0:02:51]}  g6 {[%clk 0:02:55]} 4. Bg2 {[%clk 0:02:51]}  Bg7 {[%clk 0:02:55]} 5. O-O {[%clk 0:02:52]}  e6 {[%clk 0:02:54]} 6. e4 {[%clk 0:02:52]}  Nge7 {[%clk 0:02:53]} 7. Nbd2 {[%clk 0:02:53]}  Rb8 {[%clk 0:02:50]} 8. Re1 {[%clk 0:02:53]}  b5 {[%clk 0:02:46]} 9. Nf1 {[%clk 0:02:53]}  b4 {[%clk 0:02:45]} 10. h4 {[%clk 0:02:53]}  d6 {[%clk 0:02:45]} 11. N1h2 {[%clk 0:02:53]}  h5 {[%clk 0:02:44]} 12. Nf1 {[%clk 0:02:42]}  a5 {[%clk 0:02:43]} 13. Ne3 {[%clk 0:02:33]}  a4 {[%clk 0:02:40]} 14. Rb1 {[%clk 0:02:31]}  Qc7 {[%clk 0:02:37]} 15. Nc4 {[%clk 0:02:31]}  Ba6 {[%clk 0:02:35]} 16. b3 {[%clk 0:02:31]}  a3 {[%clk 0:02:34]} 17. Be3 {[%clk 0:02:31]}  e5 {[%clk 0:02:28]} 18. Bd2 {[%clk 0:02:23]}  Nd8 {[%clk 0:02:27]} 19. c3 {[%clk 0:02:22]}  bxc3 {[%clk 0:02:25]} 20. Bxc3 {[%clk 0:02:22]}  Ne6 {[%clk 0:02:25]} 21. Ne3 {[%clk 0:02:16]}  O-O {[%clk 0:02:23]} 22. Rc1 {[%clk 0:02:10]}  Qb7 {[%clk 0:02:20]} 23. Nc4 {[%clk 0:01:50]}  Bxc4 {[%clk 0:01:51]} 24. dxc4 {[%clk 0:01:49]}  Rfd8 {[%clk 0:01:50]} 25. Ba5 {[%clk 0:01:22]}  Rd7 {[%clk 0:01:49]} 26. Bh3 {[%clk 0:01:22]}  Nc6 {[%clk 0:01:46]} 27. Bc3 {[%clk 0:01:21]}  Bh6 {[%clk 0:01:40]} 28. Rc2 {[%clk 0:01:20]}  Rbd8 {[%clk 0:01:35]} 29. Qd5 {[%clk 0:01:15]}  Re7 {[%clk 0:01:29]} 30. Qd3 {[%clk 0:01:06]}  Qc7 {[%clk 0:01:21]} 31. Rd1 {[%clk 0:01:05]}  Ned4 {[%clk 0:01:17]} 32. Bxd4 {[%clk 0:00:59]}  exd4 {[%clk 0:01:16]} 33. Ne1 {[%clk 0:00:42]}  Nb4 {[%clk 0:01:14]} 34. Qf3 {[%clk 0:00:40]}  Nxc2 {[%clk 0:01:10]} 35. Nxc2 {[%clk 0:00:40]}  Rde8 {[%clk 0:01:10]} 36. Re1 {[%clk 0:00:38]}  Qa5 {[%clk 0:01:09]} 37. b4 {[%clk 0:00:36]}  cxb4 {[%clk 0:01:04]} 38. Nxd4 {[%clk 0:00:36]}  b3 {[%clk 0:01:04]} 39. Nc6 {[%clk 0:00:35]}  Qxe1+ {[%clk 0:01:03]} 0-1


[Site "https://www.chess.com"]

[Event "Titled Tuesday Blitz April 19 Early 2022"]
[White "Ljukin, Sergei"]
[Black "Kosteniuk, Alexandra"]
[WhiteFideId "14102200"]
[BlackFideId "4128125"]
[WhiteElo "2312"]
[BlackElo "2469"]
[Result "0-1"]
[Round "07"]
[TimeControl "180+1"]
[Date "2022.04.19"]
[WhiteClock "0:00:01"]
[BlackClock "0:00:35"]

1. e4 {[%clk 0:02:49]}  c6 {[%clk 0:02:59]} 2. d4 {[%clk 0:02:47]}  d5 {[%clk 0:03:00]} 3. e5 {[%clk 0:02:46]}  c5 {[%clk 0:03:00]} 4. Nf3 {[%clk 0:02:45]}  Bg4 {[%clk 0:02:59]} 5. dxc5 {[%clk 0:02:41]}  e6 {[%clk 0:02:59]} 6. Be3 {[%clk 0:02:40]}  Nd7 {[%clk 0:02:57]} 7. h3 {[%clk 0:02:28]}  Bxf3 {[%clk 0:02:54]} 8. Qxf3 {[%clk 0:02:28]}  Nxe5 {[%clk 0:02:52]} 9. Qg3 {[%clk 0:02:28]}  Nc6 {[%clk 0:02:50]} 10. c3 {[%clk 0:02:25]}  Nf6 {[%clk 0:02:49]} 11. Bd3 {[%clk 0:02:22]}  Nd7 {[%clk 0:02:29]} 12. b4 {[%clk 0:02:05]}  g6 {[%clk 0:02:22]} 13. Na3 {[%clk 0:01:39]}  a6 {[%clk 0:02:16]} 14. O-O {[%clk 0:01:27]}  Bg7 {[%clk 0:02:16]} 15. Rac1 {[%clk 0:01:26]}  O-O {[%clk 0:02:11]} 16. f4 {[%clk 0:01:25]}  d4 {[%clk 0:02:07]} 17. cxd4 {[%clk 0:01:22]}  Nxb4 {[%clk 0:02:07]} 18. Be4 {[%clk 0:01:15]}  Nd5 {[%clk 0:02:00]} 19. Bxd5 {[%clk 0:01:07]}  exd5 {[%clk 0:02:01]} 20. Rb1 {[%clk 0:01:03]}  b5 {[%clk 0:01:48]} 21. f5 {[%clk 0:00:56]}  Nf6 {[%clk 0:01:45]} 22. Nc2 {[%clk 0:00:53]}  Ne4 {[%clk 0:01:44]} 23. Qf4 {[%clk 0:00:50]}  Re8 {[%clk 0:01:28]} 24. Bf2 {[%clk 0:00:38]}  Nc3 {[%clk 0:01:26]} 25. Rbe1 {[%clk 0:00:28]}  Ne2+ {[%clk 0:01:26]} 26. Rxe2 {[%clk 0:00:28]}  Rxe2 {[%clk 0:01:27]} 27. Ne3 {[%clk 0:00:27]}  g5 {[%clk 0:01:23]} 28. Qf3 {[%clk 0:00:27]}  Rxa2 {[%clk 0:01:20]} 29. Nxd5 {[%clk 0:00:26]}  Rxf2 {[%clk 0:01:19]} 30. Rxf2 {[%clk 0:00:19]}  Bxd4 {[%clk 0:01:19]} 31. f6 {[%clk 0:00:18]}  Bxc5 {[%clk 0:01:07]} 32. Qf5 {[%clk 0:00:10]}  Kh8 {[%clk 0:01:04]} 33. Qxg5 {[%clk 0:00:08]}  Qg8 {[%clk 0:01:03]} 34. Qe5 {[%clk 0:00:06]}  Qg6 {[%clk 0:00:51]} 35. Ne3 {[%clk 0:00:05]}  Bxe3 {[%clk 0:00:40]} 36. Qxe3 {[%clk 0:00:04]}  Rg8 {[%clk 0:00:41]} 37. Qb6 {[%clk 0:00:03]}  Qb1+ {[%clk 0:00:38]} 38. Kh2 {[%clk 0:00:02]}  Qa1 {[%clk 0:00:39]} 39. Qb7 {[%clk 0:00:01]}  Qe5+ {[%clk 0:00:37]} 40. Kg1 {[%clk 0:00:01]}  Qe1+ {[%clk 0:00:37]} 41. Kh2 {[%clk 0:00:02]}  Qxf2 {[%clk 0:00:35]} 42. Qxf7 {[%clk 0:00:01]}  Qxg2# {[%clk 0:00:35]} 0-1


[Site "https://www.chess.com"]

[Event "Titled Tuesday Blitz April 19 Early 2022"]
[White "Lopez, Henry"]
[Black "Sailer, Mike"]
[WhiteFideId "5203830"]
[BlackFideId "2012901"]
[WhiteElo "2177"]
[BlackElo "2109"]
[Result "1-0"]
[Round "07"]
[TimeControl "180+1"]
[Date "2022.04.19"]
[WhiteClock "0:00:06"]
[BlackClock "0:00:02"]

1. d4 {[%clk 0:02:56]}  d5 {[%clk 0:02:59]} 2. Nf3 {[%clk 0:02:55]}  Bf5 {[%clk 0:03:00]} 3. c4 {[%clk 0:02:54]}  e6 {[%clk 0:03:00]} 4. Nc3 {[%clk 0:02:53]}  Nc6 {[%clk 0:03:00]} 5. Bf4 {[%clk 0:02:47]}  Nf6 {[%clk 0:03:00]} 6. e3 {[%clk 0:02:46]}  Bb4 {[%clk 0:02:59]} 7. Qb3 {[%clk 0:02:44]}  O-O {[%clk 0:02:48]} 8. Rc1 {[%clk 0:02:41]}  a5 {[%clk 0:02:45]} 9. a3 {[%clk 0:02:21]}  a4 {[%clk 0:02:43]} 10. Qa2 {[%clk 0:02:20]}  Bxc3+ {[%clk 0:02:43]} 11. bxc3 {[%clk 0:02:20]}  Na5 {[%clk 0:02:27]} 12. Ne5 {[%clk 0:01:55]}  Nb3 {[%clk 0:02:14]} 13. Rd1 {[%clk 0:01:54]}  Ne4 {[%clk 0:01:59]} 14. Qb2 {[%clk 0:01:51]}  c6 {[%clk 0:01:53]} 15. f3 {[%clk 0:01:41]}  Nd6 {[%clk 0:01:39]} 16. c5 {[%clk 0:01:40]}  Nc8 {[%clk 0:01:19]} 17. g4 {[%clk 0:01:25]}  Bg6 {[%clk 0:01:13]} 18. Bg2 {[%clk 0:01:14]}  f6 {[%clk 0:01:07]} 19. Nxg6 {[%clk 0:01:13]}  hxg6 {[%clk 0:01:07]} 20. O-O {[%clk 0:01:13]}  b6 {[%clk 0:00:56]} 21. Qc2 {[%clk 0:01:07]}  Kf7 {[%clk 0:00:45]} 22. cxb6 {[%clk 0:01:04]}  Nxb6 {[%clk 0:00:46]} 23. e4 {[%clk 0:01:02]}  Nc4 {[%clk 0:00:45]} 24. Rfe1 {[%clk 0:00:56]}  Nxa3 {[%clk 0:00:43]} 25. Qd3 {[%clk 0:00:56]}  Nc4 {[%clk 0:00:42]} 26. Qe2 {[%clk 0:00:53]}  a3 {[%clk 0:00:34]} 27. Qa2 {[%clk 0:00:49]}  Qb6 {[%clk 0:00:24]} 28. Bg3 {[%clk 0:00:39]}  e5 {[%clk 0:00:20]} 29. Bf2 {[%clk 0:00:39]}  exd4 {[%clk 0:00:17]} 30. cxd4 {[%clk 0:00:35]}  Rfb8 {[%clk 0:00:14]} 31. f4 {[%clk 0:00:32]}  Qb4 {[%clk 0:00:13]} 32. exd5 {[%clk 0:00:31]}  cxd5 {[%clk 0:00:13]} 33. Bxd5+ {[%clk 0:00:29]}  Kf8 {[%clk 0:00:13]} 34. Qe2 {[%clk 0:00:22]}  Re8 {[%clk 0:00:11]} 35. Qxc4 {[%clk 0:00:18]}  Qxc4 {[%clk 0:00:10]} 36. Bxc4 {[%clk 0:00:16]}  Rxe1+ {[%clk 0:00:09]} 37. Rxe1 {[%clk 0:00:07]}  a2 {[%clk 0:00:09]} 38. Bxb3 {[%clk 0:00:07]}  a1=Q {[%clk 0:00:10]} 39. Rxa1 {[%clk 0:00:08]}  Rxa1+ {[%clk 0:00:10]} 40. Kg2 {[%clk 0:00:09]}  Ke7 {[%clk 0:00:08]} 41. f5 {[%clk 0:00:07]}  g5 {[%clk 0:00:08]} 42. Be6 {[%clk 0:00:06]}  Kd6 {[%clk 0:00:06]} 43. Bg3+ {[%clk 0:00:06]}  Ke7 {[%clk 0:00:05]} 44. h4 {[%clk 0:00:06]}  Ra2+ {[%clk 0:00:05]} 45. Kh3 {[%clk 0:00:06]}  gxh4 {[%clk 0:00:04]} 46. Bxa2 {[%clk 0:00:05]}  hxg3 {[%clk 0:00:02]} 47. Kxg3 {[%clk 0:00:06]} 1-0


[Site "https://www.chess.com"]